bitfinex-derivatives/quotes_SOLF0:USTF0_20250904
["timestamp","ask_amount","ask_price","bid_price","bid_amount"]
[1756984145601,3.43271819,207.68,207.66,7.45]
[1756984145899,11.9823,207.69,207.66,7.45]
[1756984146100,3.43271819,207.68,207.66,7.45]
[1756984146396,11.9823,207.69,207.66,7.45]
[1756984146699,3.43280422,207.68,207.66,7.45]
[1756984146997,11.9823,207.69,207.66,7.45]
[1756984147203,3.43280269,207.68,207.66,7.45]
[1756984147404,11.9823,207.69,207.66,7.45]
[1756984147596,3.43297448,207.68,207.66,7.45]
[1756984147899,11.9823,207.69,207.66,7.45]
[1756984148099,3.43297525,207.68,207.66,7.45]
[1756984148301,11.9823,207.69,207.66,7.45]
[1756984148501,3.4333776,207.68,207.66,7.45]
[1756984148701,11.9823,207.69,207.66,7.45]
[1756984148901,7.65,207.69,207.65,2.58368959]
[1756984149102,11.9818,207.71,207.66,7.45]
[1756984149298,4.3312,207.74,207.69,7.45]
[1756984149605,3.38742896,207.73,207.71,9.99984516]
[1756984149807,7.65,207.74,207.71,9.99984516]
[1756984150001,3.38747591,207.73,207.71,2.54984516]
[1756984150299,7.65,207.74,207.69,0.03514891]
[1756984150604,7.65,207.72,207.7,2.54984516]
[1756984150801,7.65,207.78,207.7,2.54984516]
[1756984151004,7.65,207.76,207.7,2.54984516]
[1756984151205,7.65,207.74,207.7,9.99984516]
[1756984151405,11.03696721,207.73,207.7,9.99984516]
[1756984151611,7.65,207.73,207.7,9.99984516]
[1756984153007,11.9814,207.73,207.7,9.99984516]
[1756984154911,11.541,207.75,207.71,7.48]
[1756984155112,10.59641762,207.74,207.71,7.48]
[1756984155308,3.38572891,207.73,207.7,2.54984516]
[1756984155613,7.21,207.72,207.7,2.58081502]
[1756984156612,7.21,207.72,207.7,0.03096986]
[1756984156613,7.21,207.71,207.7,0.03096986]
[1756984156811,10.59486086,207.71,207.7,0.03096986]
[1756984162606,7.21,207.71,207.7,0.03096986]
[1756984163820,10.59686685,207.71,207.7,0.03096986]
[1756984164917,7.21,207.71,207.7,0.03096986]
[1756984165118,10.59781486,207.71,207.7,0.03096986]
[1756984165612,3.38546277,207.71,207.7,0.03096986]
[1756984165919,7.21,207.77,207.71,7.45]
[1756984166118,3.38698154,207.76,207.73,2.54984516]
[1756984166317,7.21,207.76,207.73,2.54984516]
[1756984167813,67.3547,207.8,207.72,7.48290605]
[1756984168013,7.21,207.78,207.72,7.48290605]
[1756984168218,3.38712962,207.77,207.72,7.48290605]
[1756984168417,7.21,207.73,207.72,0.03290605]
[1756984170821,67.3547,207.8,207.72,0.03290605]
[1756984170822,11.5407,207.76,207.72,2.58275121]
[1756984171021,11.5407,207.76,207.73,7.45]
[1756984171222,7.21,207.76,207.73,7.45]
[1756984172119,72.66953305,207.84,207.72,2.58275121]
[1756984172325,7.21,207.82,207.72,10.03275121]
[1756984172526,3.38853869,207.81,207.72,10.03275121]
[1756984172822,7.21,207.76,207.72,10.03275121]
[1756984173424,7.21,207.76,207.73,7.45]
[1756984173926,4.3306,207.77,207.72,2.58275121]
[1756984174618,11.5406,207.77,207.73,7.45]
[1756984175422,11.5406,207.77,207.72,2.58275121]
[1756984175624,11.5406,207.77,207.73,7.45]
[1756984176121,7.21,207.77,207.72,2.58275121]
[1756984176727,11.5406,207.77,207.73,7.45]
[1756984177122,3.39405625,207.76,207.73,7.45]
[1756984177323,11.5406,207.77,207.73,7.45]
[1756984177726,11.5406,207.77,207.72,2.58275121]
[1756984177928,11.5406,207.77,207.73,7.45]
[1756984178122,11.5406,207.77,207.72,2.58275121]
[1756984178523,11.5406,207.77,207.73,7.45]
[1756984178722,11.5406,207.77,207.72,2.58275121]
[1756984178924,72.66953305,207.84,207.75,2.54984516]
[1756984179225,10.60328746,207.83,207.75,2.54984516]
[1756984179425,7.21,207.81,207.75,2.54984516]
[1756984179625,7.21,207.79,207.77,0.03077013]
[1756984179826,3.39328746,207.78,207.77,0.03077013]
[1756984180329,10.60328746,207.78,207.77,0.03077013]
[1756984185329,4.3301,207.79,207.77,2.58061529]
[1756984185740,4.3301,207.79,207.77,10.04061529]
[1756984186033,4.3297,207.81,207.77,10.04061529]
[1756984186233,3.38838878,207.8,207.77,10.04061529]
[1756984186434,3.38838878,207.79,207.77,10.04061529]
[1756984186633,11.9997,207.81,207.77,10.04061529]
[1756984186833,3.38824088,207.8,207.77,10.04061529]
[1756984187035,3.38824088,207.79,207.77,10.04061529]
[1756984187235,4.3297,207.81,207.77,10.04061529]
[1756984187535,11.05816533,207.8,207.77,10.04061529]
[1756984187737,3.38816533,207.79,207.77,10.04061529]
[1756984187937,7.67,207.8,207.77,10.04061529]
[1756984188137,3.38891323,207.79,207.77,10.04061529]
[1756984188336,11.9999,207.8,207.77,10.04061529]
[1756984188537,5.32583305,207.86,207.77,0.03077013]
[1756984188538,7.67,207.78,207.77,0.03077013]
[1756984191543,11.9992,207.83,207.77,2.58061529]
[1756984191750,3.39010384,207.82,207.81,2.54984516]
[1756984192044,7.71970384,207.82,207.77,0.03077013]
[1756984192233,7.71970384,207.82,207.75,7.46]
[1756984192234,7.67,207.8,207.78,2.54984516]
[1756984192434,7.67,207.8,207.78,2.58167609]
[1756984195445,7.67,207.8,207.79,1.62982567]
[1756984196746,7.67,207.83,207.79,1.62982567]
[1756984196946,11.0591519,207.82,207.81,1.62982567]
[1756984200052,3.3891519,207.82,207.81,9.08982567]
[1756984200345,5.32583305,207.9,207.81,1.62982567]
[1756984200346,7.67,207.89,207.81,1.62982567]
[1756984200648,7.67,207.87,207.84,1.62982567]
[1756984200847,7.67,207.85,207.84,1.62982567]
[1756984201049,11.05773697,207.85,207.84,1.62982567]
[1756984201552,11.999,207.84,207.83,0.03486717]
[1756984201750,15.38673697,207.84,207.83,0.03486717]
[1756984202151,4.3296,207.81,207.8,1.62982567]
[1756984202353,7.67,207.8,207.76,1.62982567]
[1756984202555,3.38773697,207.79,207.76,1.62982567]
[1756984202747,7.67,207.77,207.76,1.62982567]
[1756984203943,3.38851837,207.77,207.72,1.62982567]
[1756984204148,3.38849045,207.76,207.72,1.62982567]
[1756984204358,3.38849045,207.75,207.72,1.62982567]
[1756984204652,7.67,207.76,207.72,1.62982567]
[1756984204853,3.38925738,207.75,207.72,1.62982567]
[1756984205043,7.67,207.76,207.72,1.62982567]
[1756984205249,3.39018047,207.75,207.7,1.62982567]
[1756984205450,7.67,207.73,207.7,1.62982567]
[1756984205753,7.67,207.76,207.7,1.62982567]
[1756984205952,7.67,207.73,207.7,1.62982567]
[1756984206647,7.67,207.71,207.7,1.62982567]
[1756984207049,3.39009193,207.71,207.6,7.49]
[1756984207253,3.39009193,207.7,207.65,1.62982567]
[1756984207556,7.67,207.71,207.65,1.62982567]
[1756984207752,3.42503684,207.7,207.65,1.62982567]
[1756984207953,7.67,207.68,207.65,1.62982567]
[1756984208355,4.3322,207.69,207.65,1.62982567]
[1756984208550,7.67,207.67,207.65,1.62982567]
[1756984208752,0.03522679,207.7,207.65,1.62982567]
[1756984209451,70.73152701,207.69,207.64,1.62982567]
[1756984209651,7.67,207.68,207.64,1.62982567]
[1756984210045,12.0033,207.64,207.62,1.62982567]
[1756984210247,7.67,207.63,207.62,1.62982567]
[1756984212053,7.70037257,207.65,207.62,1.62982567]
[1756984212255,7.70037257,207.65,207.64,1.62982567]
[1756984215860,7.70037257,207.65,207.6,119.96]
[1756984216057,7.45,207.64,207.6,127.46]
[1756984216258,7.45,207.64,207.63,1.62982567]
[1756984218254,0.03037257,207.65,207.6,119.96]
[1756984218255,0.03037257,207.65,207.6,121.58982567]
[1756984218661,7.45,207.64,207.6,121.58982567]
[1756984218857,0.03037257,207.65,207.6,121.58982567]
[1756984219059,7.45,207.64,207.6,121.58982567]
[1756984219259,7.45,207.62,207.6,1.62982567]
[1756984221667,4.3335,207.63,207.6,1.62982567]
[1756984222765,4.3338,207.61,207.6,1.62982567]
[1756984222967,11.7838,207.61,207.6,1.62982567]
[1756984223260,67.4117,207.62,207.56,119.94]
[1756984223465,7.45,207.61,207.56,119.94]
[1756984223666,67.4117,207.62,207.56,119.94]
[1756984223966,11.7845,207.58,207.56,119.94]
[1756984226362,4.3345,207.58,207.56,119.94]
[1756984226663,11.7845,207.58,207.56,119.94]
[1756984226866,4.3345,207.58,207.56,119.94]
[1756984227067,11.7845,207.58,207.56,119.94]
[1756984228058,11.7845,207.58,207.55,1.62982567]
[1756984228257,4.3347,207.57,207.55,1.62982567]
[1756984228665,11.7847,207.57,207.55,1.62982567]
[1756984231273,7.45,207.56,207.55,1.62982567]
[1756984232863,4.3351,207.55,207.52,121.56982567]
[1756984233075,7.45,207.56,207.52,121.56982567]
[1756984233364,1.62982567,207.57,207.52,119.94]
[1756984233573,7.45,207.53,207.52,119.94]
[1756984235061,7.45,207.53,207.51,1.62982567]
[1756984236771,7.45,207.52,207.51,1.62982567]
[1756984237676,7.45,207.51,207.49,1.62982567]
[1756984238774,7.45,207.5,207.49,1.62982567]
[1756984242372,4.336,207.51,207.48,119.92]
[1756984242580,7.22,207.49,207.48,121.54982567]
[1756984243780,4.36937649,207.52,207.48,121.54982567]
[1756984243981,7.22,207.51,207.48,121.54982567]
[1756984244280,7.22,207.51,207.33,76.1839]
[1756984244281,0.03367649,207.52,207.39,67.4834]
[1756984244579,7.22,207.52,207.49,1.62982567]
[1756984246482,7.22,207.51,207.49,1.62982567]
[1756984251883,0.03451548,207.53,207.49,1.62982567]
[1756984252084,0.03451548,207.53,207.51,9.13982567]
[1756984252282,7.25451548,207.53,207.51,1.62982567]
[1756984252779,7.25451548,207.53,207.49,7.51]
[1756984252986,7.25451548,207.53,207.52,1.62982567]
[1756984255485,11.59001548,207.53,207.5,2.5535547]
[1756984256285,11.59001548,207.53,207.5,10.0635547]
[1756984256485,11.59001548,207.53,207.52,2.5535547]
[1756984256486,0.03451548,207.53,207.52,2.5535547]
[1756984256678,0.03451548,207.53,207.52,10.0635547]
[1756984256883,11.5543,207.59,207.52,14.3990547]
[1756984257085,7.22,207.58,207.55,10.0635547]
[1756984257281,7.22,207.58,207.56,2.5535547]
[1756984257491,8.6652,207.67,207.56,2.5535547]
[1756984257492,11.5539,207.61,207.56,2.5535547]
[1756984257783,7.22,207.6,207.57,7.51]
[1756984260697,4.3335,207.63,207.57,7.51]
[1756984260992,4.3335,207.63,207.59,2.5535547]
[1756984261192,7.22,207.62,207.59,2.5535547]
[1756984261398,4.333,207.65,207.59,10.0635547]
[1756984261599,4.333,207.65,207.59,77.9835547]
[1756984261993,4.333,207.65,207.6,0.03093298]
[1756984262293,11.553,207.65,207.61,7.51]
[1756984262693,7.22,207.64,207.61,7.51]
[1756984263394,7.22,207.71,207.62,2.5535547]
[1756984263596,67.3811,207.72,207.62,2.5535547]
[1756984263597,7.22,207.69,207.62,2.5535547]
[1756984263898,7.22,207.69,207.65,10.0635547]
[1756984265300,180.84651708,207.76,207.65,2.5535547]
[1756984265600,7.22,207.74,207.68,2.5535547]
[1756984265797,3.33806709,207.73,207.68,2.5535547]
[1756984266097,7.22,207.71,207.68,2.58941051]
[1756984266489,7.22,207.75,207.68,2.58941051]
[1756984266690,7.00355781,207.74,207.68,2.58941051]
[1756984266893,4.3315,207.72,207.68,2.58941051]
[1756984267091,7.22,207.7,207.68,2.58941051]
[1756984267397,7.22,207.72,207.68,10.09941051]
[1756984267599,7.22,207.75,207.68,10.09941051]
[1756984267895,7.66746224,207.74,207.68,10.09941051]
[1756984268094,3.33636224,207.73,207.69,7.51]
[1756984268295,12.54583305,207.81,207.71,7.51]
[1756984268603,7.22,207.81,207.75,2.5535547]
[1756984268894,7.87938775,207.89,207.75,2.5535547]
[1756984269100,7.87938775,207.89,207.74,68.45565982]
[1756984269101,14.42170167,207.88,207.78,2.5535547]
[1756984269299,308.50990012,207.9,207.78,2.5535547]
[1756984269300,7.22,207.86,207.78,10.0635547]
[1756984269495,303.18406707,207.9,207.81,0.03642655]
[1756984269796,10.88295496,207.89,207.81,2.58998125]
[1756984270101,7.22,207.87,207.81,2.58998125]
[1756984272002,7.22,207.87,207.81,10.09998125]
[1756984272204,7.22,207.87,207.84,2.5535547]
[1756984272404,183.48406707,207.9,207.84,2.5535547]
[1756984272707,7.98,207.91,207.87,10.0535547]
[1756984273306,7.98,207.91,207.87,10.08633345]
[1756984274100,7.98,207.96,207.88,7.5]
[1756984274405,7.98,207.96,207.89,2.5535547]
[1756984274599,12.3071,207.93,207.85,19.64]
[1756984274804,67.2923,207.99,207.9,0.03468516]
[1756984274805,7.98,207.96,207.9,0.03468516]
[1756984275303,7.98,207.94,207.9,0.03468516]
[1756984276412,7.98,207.91,207.9,0.03468516]
[1756984283810,12.3069,207.94,207.9,0.03468516]
[1756984284016,7.98,207.94,207.9,7.55468516]
[1756984285317,7.98,207.94,207.91,7.52]
[1756984285710,4.3268,207.95,207.9,0.03468516]
[1756984286011,7.98,208.0,207.91,7.52]
[1756984286413,129.32583305,208.13,207.93,2.5535547]
[1756984286610,11.60253582,208.08,207.96,2.5535547]
[1756984286812,7.98,208.06,207.96,2.5535547]
[1756984287011,7.98,208.06,207.99,0.03209295]
[1756984287208,7.98,208.06,208.0,7.52]
[1756984288718,7.98,208.06,207.99,0.03209295]
[1756984289510,7.98,208.04,207.99,0.03209295]
[1756984289819,10.5335547,208.04,207.99,0.03209295]
[1756984290119,2.5535547,208.04,207.99,0.03209295]
[1756984290309,69.8293547,208.04,207.99,0.03209295]
[1756984290512,7.98,208.03,207.99,0.03209295]
[1756984290813,7.98,208.0,207.99,0.03209295]
[1756984293718,4.3268,207.95,207.89,7.52]
[1756984294920,0.03550371,207.94,207.89,7.52]
[1756984295122,8.01550371,207.94,207.89,7.52]
[1756984296223,12.34260371,207.94,207.89,7.52]
[1756984296423,12.34260371,207.94,207.87,7.55]
[1756984296424,8.01550371,207.94,207.87,7.55]
[1756984296825,12.34240371,207.94,207.87,7.55]
[1756984297020,4.36240371,207.94,207.87,7.55]
[1756984297220,0.03550371,207.94,207.88,2.5535547]
[1756984297917,0.03550371,207.94,207.89,7.55]
[1756984298521,0.03550371,207.94,207.88,2.5535547]
[1756984298721,0.03550371,207.94,207.89,7.55]
[1756984298922,0.03550371,207.94,207.88,2.5535547]
[1756984299727,0.03550371,207.94,207.89,7.55]
[1756984300025,0.03550371,207.94,207.88,2.5535547]
[1756984300832,0.03550371,207.94,207.92,7.55]
[1756984301126,7.98,208.03,207.91,2.5535547]
[1756984301127,7.98,208.03,207.94,7.55]
[1756984301421,7.98,208.09,208.02,2.5535547]
[1756984301623,3.63227738,208.08,208.02,2.5535547]
[1756984301823,3.63227738,208.07,208.02,2.5535547]
[1756984302120,3.63227738,208.07,207.94,23.44]
[1756984302121,7.98,208.04,207.94,23.44]
[1756984302425,67.2725,208.05,208.02,0.03333023]
[1756984302426,15.62711429,208.03,208.02,0.03333023]
[1756984302624,11.30211429,208.03,207.94,25.9935547]
[1756984302825,67.2764,208.04,207.97,0.03232567]
[1756984303128,11.30373702,208.03,207.97,0.03232567]
[1756984303327,7.67,208.01,207.97,0.03232567]
[1756984303522,7.67,207.98,207.97,0.03232567]
[1756984305424,11.996,207.99,207.97,0.03232567]
[1756984305729,7.67,207.98,207.97,0.03232567]
[1756984306127,4.326,207.99,207.97,0.03232567]
[1756984306334,4.3254,208.02,207.98,7.53]
[1756984306523,3.64594888,208.01,207.98,7.53]
[1756984306834,119.34,208.1,207.98,7.53]
[1756984306835,7.67,208.08,207.99,7.53]
[1756984307127,3.64620601,208.07,208.01,2.5535547]
[1756984307331,11.9941,208.08,208.04,10.0835547]
[1756984308233,7.67,208.08,208.01,0.03249533]
[1756984308730,4.3251,208.03,208.01,0.03249533]
[1756984309434,4.3247,208.05,208.01,7.56249533]
[1756984309828,11.9947,208.05,208.01,7.56249533]
[1756984310029,4.3247,208.05,208.02,7.53]
[1756984311733,4.3247,208.05,208.01,0.03249533]
[1756984312039,7.67,208.04,208.01,0.03249533]
[1756984312534,11.9949,208.04,208.01,0.03249533]
[1756984312834,4.3249,208.04,208.01,0.03249533]
[1756984313033,11.9952,208.03,208.01,0.03249533]
[1756984313334,7.67,208.02,208.01,0.03249533]
[1756984314333,7.67,208.0,207.93,7.53]
[1756984314740,0.03213129,207.99,207.93,7.53]
[1756984315136,4.3261,207.98,207.92,2.5535547]
[1756984315334,4.3261,207.98,207.92,10.1135547]
[1756984315742,11.9964,207.97,207.93,7.56]
[1756984315948,0.03213129,207.99,207.93,10.1135547]
[1756984316853,4.35803129,207.99,207.93,10.1135547]
[1756984317540,4.35803129,207.99,207.97,1.62726854]
[1756984317744,0.03213129,207.99,207.97,1.62726854]
[1756984317944,0.03213129,207.99,207.97,9.18726854]
[1756984318550,0.03213129,207.99,207.97,1.62726854]
[1756984319152,4.35813129,207.99,207.97,9.18726854]
[1756984319853,4.35813129,207.99,207.98,7.56]
[1756984320049,0.03213129,207.99,207.98,7.56]
[1756984320352,0.03213129,207.99,207.97,1.62726854]
[1756984320353,7.67,207.98,207.97,1.62726854]
[1756984320655,11.9961,207.98,207.94,9.18726854]
[1756984320851,0.03213129,207.99,207.97,7.56]
[1756984321051,0.03213129,207.99,207.98,9.18726854]
[1756984322750,9.29726854,208.1,207.98,9.66726854]
[1756984322957,7.67,208.09,208.05,1.62726854]
[1756984323251,1.62726854,208.1,208.05,1.62726854]
[1756984323252,7.67,208.1,208.05,1.62726854]
[1756984323450,7.67,208.1,208.04,1.62726854]
[1756984324051,68.88086854,208.11,208.05,0.03136396]
[1756984324852,7.67,208.06,208.05,0.03136396]
[1756984326951,7.67,208.03,207.96,9.18726854]
[1756984327156,1.62726854,208.02,207.96,9.18726854]
[1756984327356,7.67,208.03,207.96,9.18726854]
[1756984327560,7.67,208.03,207.96,7.56]
[1756984327856,4.3255,208.01,207.95,7.59]
[1756984328251,4.3257,208.0,207.95,7.59]
[1756984328452,4.3257,208.0,207.94,7.59]
[1756984328960,0.03499485,208.02,207.93,7.59]
[1756984329157,0.03499485,208.02,207.93,59.03]
[1756984329959,67.2917,207.99,207.93,7.59]
[1756984330160,74.9617,207.99,207.93,7.59]
[1756984330761,7.67,207.99,207.93,7.59]
[1756984331656,4.3266,207.96,207.91,11.65822598]
[1756984331861,0.03499485,208.02,207.92,7.59]
[1756984332063,7.67,208.04,207.94,4.06822598]
[1756984332256,0.03436063,207.99,207.94,8.04492094]
[1756984332464,0.03436063,207.99,207.94,4.06822598]
[1756984332662,0.03436063,207.99,207.95,7.5]
[1756984332856,0.03436063,207.99,207.94,4.06822598]
[1756984333358,4.3264,207.97,207.95,7.5]
[1756984333854,4.3267,207.95,207.92,109.42]
[1756984334054,4.3267,207.95,207.93,7.5]
[1756984334268,0.03436063,207.99,207.93,7.5]
[1756984335163,4.3266,207.96,207.93,7.5]
[1756984335962,4.3266,207.96,207.9,123.19669496]
[1756984336157,4.3266,207.96,207.91,7.5]
[1756984336363,4.3266,207.96,207.9,123.19669496]
[1756984336564,4.3266,207.96,207.88,13.7730954]
[1756984336565,67.2983,207.97,207.89,3.97669496]
[1756984336758,7.56,207.96,207.88,7.5]
[1756984337156,0.0353033,207.94,207.88,7.5]
[1756984337363,3.68885818,207.93,207.88,7.5]
[1756984337560,3.68885818,207.93,207.87,51.63669496]
[1756984337561,0.0353033,207.94,207.9,4.06822598]
[1756984337765,0.0353033,207.94,207.88,3.97669496]
[1756984338067,0.0353033,207.94,207.91,4.06822598]
[1756984338267,0.0353033,207.94,207.92,7.5]
[1756984338464,0.0353033,207.94,207.9,7.5]
[1756984338767,0.0353033,207.94,207.89,4.06822598]
[1756984338963,0.0353033,207.94,207.89,123.28822598]
[1756984339162,4.3623033,207.94,207.9,7.5]
[1756984339359,7.56,207.93,207.87,3.97669496]
[1756984339558,7.56,207.93,207.86,11.56822598]
[1756984339559,7.56,207.93,207.86,15.54492094]
[1756984339763,7.56,207.93,207.77,76.0214]
[1756984339764,4.3276,207.91,207.85,130.69669496]
[1756984340161,0.0353033,207.94,207.89,4.06822598]
[1756984340764,0.0353033,207.94,207.89,8.39602598]
[1756984340966,0.0353033,207.94,207.9,7.5]
[1756984341765,0.0353033,207.94,207.93,7.5]
[1756984344371,7.5953033,207.94,207.9,7.5]
[1756984344967,4.3272,207.93,207.88,119.2]
[1756984345163,4.3272,207.93,207.89,7.5]
[1756984346872,0.0353033,207.94,207.88,119.2]
[1756984347070,0.0353033,207.94,207.88,123.26822598]
[1756984347373,0.0353033,207.94,207.89,7.5]
[1756984347570,0.0353033,207.94,207.89,11.8278]
[1756984347769,0.0353033,207.94,207.89,8.30449496]
[1756984347970,0.0353033,207.94,207.9,7.5]
[1756984348377,0.0353033,207.94,207.91,4.06822598]
[1756984349371,0.0353033,207.94,207.92,7.5]
[1756984349777,0.0353033,207.94,207.93,126.7]
[1756984349979,0.0353033,207.94,207.93,7.5]
[1756984351571,4.3259,207.99,207.93,11.56822598]
[1756984352176,11.8862,207.98,207.94,119.2]
[1756984352871,11.8862,207.98,207.94,119.23087267]
[1756984353284,4.3264,207.97,207.94,119.23087267]
[1756984353476,4.3264,207.97,207.96,1.62757305]
[1756984354579,7.56,207.95,207.89,3.97669496]
[1756984354884,7.56,208.0,207.94,1.62757305]
[1756984355081,7.56,207.96,207.9,1.62757305]
[1756984355483,4.3276,207.91,207.89,44.8]
[1756984355784,7.56,207.96,207.89,44.8]
[1756984355984,0.03249601,207.92,207.9,7.5]
[1756984360079,0.03249601,207.92,207.89,119.18]
[1756984360485,0.03249601,207.92,207.9,7.5]
[1756984360680,0.03249601,207.92,207.89,119.18]
[1756984360880,0.03249601,207.92,207.91,11.57114111]
[1756984361077,143.93897416,208.06,207.92,7.5]
[1756984361078,7.56,208.03,207.92,7.5]
[1756984361385,4.3262,207.98,207.92,126.68]
[1756984361581,7.56,207.99,207.92,126.68]
[1756984361781,11.8859,207.99,207.92,126.68]
[1756984362182,7.56,207.99,207.93,0.03569522]
[1756984362489,7.38,207.97,207.93,119.21569522]
[1756984362677,7.38,207.97,207.93,126.78569522]
[1756984363788,4.3266,207.96,207.93,126.78569522]
[1756984364286,67.2825,208.02,207.93,0.03569522]
[1756984364287,7.38,207.94,207.93,0.03569522]
[1756984364789,4.3268,207.95,207.93,0.03569522]
[1756984364990,11.7068,207.95,207.93,0.03569522]
[1756984365293,7.38,207.94,207.93,0.03569522]
[1756984366992,4.3268,207.95,207.93,0.03569522]
[1756984367495,11.7068,207.95,207.93,0.03569522]
[1756984367993,4.3268,207.95,207.93,0.03569522]
[1756984368992,4.3263,207.97,207.94,7.57]
[1756984369594,4.3266,207.96,207.94,7.57]
[1756984369895,67.2893,208.0,207.93,0.03569522]
[1756984369896,7.38,207.99,207.93,0.03569522]
[1756984370994,4.3269,207.95,207.93,0.03569522]
[1756984371591,7.38,208.03,207.93,7.60569522]
[1756984372692,4.326,207.99,207.93,7.60569522]
[1756984372897,7.38,208.03,207.94,7.57]
[1756984373094,7.38,208.03,207.97,7.57]
[1756984373296,7.38,208.03,207.97,126.73]
[1756984373791,7.38,208.03,207.98,7.60235831]
[1756984373992,4.3255,208.01,207.98,7.60235831]
[1756984374994,11.7058,208.0,207.98,0.03235831]
[1756984375793,7.38,207.99,207.98,0.03235831]
[1756984376487,4.3258,208.0,207.98,0.03235831]
[1756984376693,11.7058,208.0,207.98,0.03235831]
[1756984377999,4.3253,208.02,207.98,7.60235831]
[1756984378198,7.38,208.05,207.98,0.03235831]
[1756984379191,67.2695,208.06,207.98,0.03235831]
[1756984379192,11.7058,208.0,207.98,0.03235831]
[1756984379398,7.38,207.99,207.98,0.03235831]
[1756984383309,4.3258,208.0,207.98,0.03235831]
[1756984383715,4.3253,208.02,207.98,0.03235831]
[1756984383913,7.38,208.03,207.98,2.57467596]
[1756984384214,7.38,208.03,207.99,7.57]
[1756984384516,11.7051,208.03,207.99,7.57]
[1756984384912,4.3254,208.02,207.99,7.57]
[1756984385306,11.7054,208.02,207.98,2.57467596]
[1756984385507,67.2739,208.05,207.98,2.57467596]
[1756984385711,7.38,208.03,207.98,0.03235831]
[1756984386010,7.38,207.99,207.98,0.03235831]
[1756984386610,4.3275,207.92,207.89,31.72231765]
[1756984387014,11.7075,207.92,207.89,31.72231765]
[1756984387410,4.3276,207.91,207.87,123.16287137]
[1756984387913,7.38,207.98,207.88,7.6]
[1756984388113,4.3272,207.93,207.87,123.16287137]
[1756984388317,4.3272,207.93,207.87,130.76287137]
[1756984388514,7.38,208.0,207.88,7.6]
[1756984388711,7.38,208.0,207.89,4.04287137]
[1756984388915,7.38,208.0,207.88,7.6]
[1756984388916,7.38,208.0,207.88,11.64287137]
[1756984389818,4.3266,207.96,207.88,15.97087137]
[1756984392314,4.326,207.99,207.91,14.67800287]
[1756984392521,4.326,207.99,207.92,7.59]
[1756984393312,67.2795,208.03,207.92,7.59]
[1756984393313,7.45,207.97,207.93,67.42]
[1756984393514,7.45,208.01,207.94,7.59]
[1756984393726,7.45,208.05,207.94,7.59]
[1756984393917,7.45,208.05,207.96,7.59]
[1756984394928,4.3249,208.04,207.96,7.59]
[1756984396424,4.3251,208.03,207.97,119.12]
[1756984399623,67.2731,208.05,207.97,119.1]
[1756984399827,7.45,208.04,207.97,119.1]
[1756984400326,7.45,208.01,207.97,119.1]
[1756984400532,7.45,208.01,207.97,126.68]
[1756984401030,11.7755,208.01,207.97,126.68]
[1756984401726,7.45,208.01,207.97,7.58]
[1756984401932,4.3258,208.0,207.97,69.38]
[1756984402226,4.3258,208.0,207.97,126.66]
[1756984402836,11.7753,208.02,207.98,7.58]
[1756984403327,182.99443588,208.07,207.98,7.58]
[1756984403328,7.45,208.06,207.98,7.58]
[1756984404631,4.3247,208.05,207.98,7.58]
[1756984408236,4.3249,208.04,207.98,7.58]
[1756984408932,4.3249,208.04,207.99,56.82]
[1756984409138,11.7749,208.04,208.0,7.58]
[1756984409339,7.45,208.04,208.0,45.88]
[1756984409538,7.45,208.07,208.0,45.88]
[1756984410530,7.45,208.07,207.99,2.54188401]
[1756984410730,7.45,208.07,207.99,85.00188401]
[1756984410936,7.45,208.04,207.99,121.60188401]
[1756984411136,67.2727,208.05,207.99,121.60188401]
[1756984411639,67.2727,208.05,207.99,2.54188401]